fUSD/lending_fUSD_20250228
["ID","MTS","AMOUNT","RATE_DAILY","PERIOD"]
[354857854,1740748241260,-291.21,0.000541,54]
[354857856,1740748241270,-291.21,0.000541,54]
[354857859,1740748241281,-291.21,0.000541,54]
[354857860,1740748241293,-291.21,0.000541,54]
[354857862,1740748241304,-291.21,0.000541,54]
[354857864,1740748241314,-291.21,0.000541,54]
[354857866,1740748241325,-291.21,0.000541,54]
[354857868,1740748241336,-291.21,0.000541,54]
[354857871,1740748241346,-291.21,0.000541,54]
[354857873,1740748241356,-291.21,0.000541,54]
[354857875,1740748241366,-291.21,0.000541,54]
[354857877,1740748241383,-291.21,0.000541,54]
[354857879,1740748241394,-291.21,0.000541,54]
[354857881,1740748241405,-291.21,0.000541,54]
[354857883,1740748241415,-1941.17,0.00054109,2]
[354857885,1740748241424,-3000.0,0.000542,2]
[354857887,1740748241433,-151.0,0.00054329,120]
[354857889,1740748241444,-158.509538,0.00054624,120]
[354857891,1740748241454,-8652.30329509,0.00054694,120]
[354857893,1740748241465,-453.04701474,0.00054694,120]
[354857895,1740748241478,-466.70855462,0.00054694,120]
[354858020,1740748243488,-18081.99618166,0.00043624,9]
[354858021,1740748243497,-7271.26814868,0.00045969,10]
[354858028,1740748244574,-10810.72803298,0.00045969,10]
[354858029,1740748244583,-18081.99618166,0.00048314,11]
[354858030,1740748244593,-18081.99618166,0.00050659,12]
[354858031,1740748244603,-18081.99618166,0.00053003,12]
[354858032,1740748244612,-61099.42934922,0.00054694,120]
[354858033,1740748244635,-150.0,0.000512,2]
[354858034,1740748244645,-960.48351588,0.00054694,120]
[354858035,1740748244656,-17256.02827045,0.00054694,120]
[354858036,1740748244666,-151.98197035,0.00054793,120]
[354858037,1740748244675,-500.0,0.00054794,2]
[354858038,1740748244685,-503.0232213,0.00054794,5]
[354858039,1740748244694,-500.0,0.00054794,2]
[354858040,1740748244703,-502.33656974,0.00054794,3]
[354858041,1740748244713,-1185.0,0.00054794,3]
[354858042,1740748244722,-500.0,0.00054794,7]
[354858043,1740748244732,-500.0,0.00054794,7]
[354858044,1740748244741,-4940.89226958,0.00054794,2]
[354858045,1740748244751,-500.0,0.00054794,120]
[354858046,1740748244760,-500.0,0.00054794,120]
[354858047,1740748244769,-500.0,0.00054794,120]
[354858048,1740748244778,-500.0,0.00054794,120]
[354858049,1740748244788,-500.0,0.00054794,120]
[354858050,1740748244797,-500.0,0.00054794,120]
[354858051,1740748244807,-500.0,0.00054794,120]
[354858052,1740748244816,-500.0,0.00054794,2]
[354858053,1740748244826,-500.0,0.00054794,2]
[354858054,1740748244836,-163.1457546,0.00054794,120]
[354858055,1740748244845,-500.0,0.00054794,120]
[354858056,1740748244854,-500.0,0.00054794,120]
[354858057,1740748244863,-500.0,0.00054794,120]
[354858058,1740748244875,-500.0,0.00054794,120]
[354858059,1740748244884,-396.77590553,0.00054794,120]
[354858063,1740748246747,-295.22160063,0.00046269,2]
[354858064,1740748246760,-816.77839937,0.00046269,2]
[354858065,1740748246769,-103.22409447,0.00054794,120]
[354858066,1740748246779,-500.0,0.00054794,120]
[354858067,1740748246788,-500.0,0.00054794,120]
[354858068,1740748246798,-500.0,0.00054794,120]
[354858069,1740748246807,-547.23,0.00054794,120]
[354858070,1740748246817,-500.0,0.00054794,120]
[354858071,1740748246827,-500.0,0.00054794,120]
[354858072,1740748246836,-500.0,0.00054794,120]
[354858073,1740748246847,-293.32951314,0.00054794,120]
[354858074,1740748246857,-500.0,0.00054794,120]
[354858075,1740748246867,-500.0,0.00054794,120]
[354858076,1740748246880,-500.0,0.00054794,120]
[354858077,1740748246890,-200.0,0.00054794,7]
[354858078,1740748246899,-500.0,0.00054794,120]
[354858079,1740748246910,-500.0,0.00054794,120]
[354858080,1740748246920,-263.0969185,0.00054794,120]
[354858081,1740748246931,-500.0,0.00054794,120]
[354858082,1740748246941,-500.0,0.00054794,120]
[354858083,1740748246953,-167.84288447,0.00054794,120]
[354858084,1740748246963,-500.0,0.00054794,120]
[354858085,1740748246973,-500.0,0.00054794,120]
[354858086,1740748246982,-500.0,0.00054794,120]
[354858087,1740748246992,-500.0,0.00054794,120]
[354858088,1740748247003,-500.0,0.00054794,120]
[354858089,1740748247012,-708.09819005,0.00054794,120]
[354858090,1740748247071,-983.10137394,0.00049269,2]
[354858135,1740748562830,309.248,0.00014795,2]
[354858136,1740748672250,427.59,0.0001,7]
[354858140,1740749185858,-50000.0,0.00015,2]
[354858142,1740749188973,-40000.0,0.00015,2]
[354858178,1740749431641,-2332.80967531,0.000149,2]
[354858179,1740749431652,-305.94834974,0.000149,2]
[354858180,1740749431662,-3348.67342294,0.00014999,2]
[354858182,1740749437316,-198.39210658,0.0001499,2]
[354858183,1740749437332,-145.82914342,0.00014999,2]
[354858194,1740749437496,-2097.04851961,0.00014999,2]
[354858195,1740749437507,-218.10123636,0.00014999,2]
[354858196,1740749437518,-155.15028662,0.00014999,2]
[354858197,1740749437529,-500.0,0.00014999,2]
[354858198,1740749437542,-500.0,0.00014999,2]
[354858199,1740749437557,-500.0,0.00014999,2]
[354858200,1740749437567,-619.6216064,0.00014999,2]
[354858201,1740749437585,-500.0,0.00014999,2]
[354858202,1740749437599,-8765.5732606,0.00015,2]
[354858205,1740749437625,-32563.2,0.00015,2]
[354858443,1740749439718,-1173.70891906,0.00015,2]
[354858448,1740749439756,-1624.6,0.00015,2]
[354858451,1740749439779,-1627.7946688,0.00015,2]
[354858453,1740749439793,-320.50500001,0.00015,2]
[354858469,1740749439943,-64612.33705047,0.00015,2]
[354858737,1740749442783,-18449.0,0.00015,2]
[354858883,1740749444038,-2524851.75929991,0.00015,2]
[354858886,1740749444049,-10200.6896727,0.00015,2]
[354858888,1740749444059,-4922.82929137,0.00015,2]
[354858889,1740749444069,-606349.81571883,0.00015,2]
[354858892,1740749444085,-1490.11439472,0.00015,2]
[354858894,1740749444097,-404.765,0.00015,2]
[354858897,1740749444118,-1243.33479485,0.00015,2]
[354858899,1740749444131,-2453.36780248,0.00015,2]
[354859085,1740749445892,-34534.3999991,0.00015,2]
[354859099,1740749446104,-618.16951352,0.00015,2]
[354860512,1740750161755,381.04532372,0.00014658,2]
[354860516,1740750407650,-1237.48291,0.0001485,2]
[354860534,1740750631969,-297.04785907,0.00015,2]
[354860535,1740750631996,-25495.21521856,0.00015,2]
[354860536,1740750632006,-182.89395777,0.00015047,2]
[354860537,1740750632016,-381.04532373,0.0001534,2]
[354860538,1740750632025,-300.0,0.00016487,2]
[354860539,1740750632035,-2205.41764968,0.00016488,2]
[354860540,1740750632045,-13254.9851823,0.00016488,2]
[354860541,1740750632056,-5120.5031471,0.00016488,2]
[354860542,1740750632067,-450.0,0.00016499,2]
[354860543,1740750632077,-1082.79829437,0.0001688,2]
[354860544,1740750632087,-1237.48291,0.0001735,2]
[354860545,1740750632097,-8985.41243485,0.00018649,2]
[354860546,1740750632107,-182.89395776,0.000197,2]
[354860547,1740750632117,-12899.77293235,0.000198,2]
[354860548,1740750632127,-1237.48291,0.0001985,2]
[354860549,1740750632136,-1398.25650767,0.0002,5]
[354860550,1740750632146,-6308.95998071,0.0002,4]
[354860551,1740750632156,-5098.92569839,0.0002,2]
[354860552,1740750632166,-566.0215784,0.0002,4]
[354860553,1740750632176,-250.0,0.00021,2]
[354860554,1740750632186,-154.82,0.00021918,2]
[354860555,1740750632196,-1237.48291,0.0002235,2]
[354860557,1740750632205,-300.0,0.00023,2]
[354860559,1740750632215,-1121.21699918,0.0002306,2]
[354860561,1740750632226,-1584.77,0.00023444,2]
[354860563,1740750632235,-23565.10673508,0.00024,2]
[354860565,1740750632246,-780.0782225,0.0002402,2]
[354860567,1740750632256,-403.82556959,0.0002421,2]
[354860569,1740750632265,-3538.48735343,0.0002421,2]
[354860571,1740750632276,-3887.5979492,0.00024345,2]
[354860573,1740750632286,-1237.48291,0.0002485,2]
[354860575,1740750632296,-350.0,0.00025,2]
[354860577,1740750632306,-168.35,0.00025286,2]
[354860579,1740750632316,-175.43,0.00025343,2]
[354860581,1740750632326,-184.6,0.00025416,2]
[354860583,1740750632336,-500.0,0.00025452,2]
[354860585,1740750632346,-161.54,0.00025465,30]
[354860587,1740750632355,-175.43,0.00025477,2]
[354860589,1740750632365,-150.0,0.00025529,7]
[354860591,1740750632374,-175.43,0.0002561,2]
[354860593,1740750632384,-941.6,0.00025622,2]
[354860594,1740750632394,-1584.77,0.00025708,2]
[354860595,1740750632404,-203.64,0.00025727,120]
[354860597,1740750632413,-175.43,0.00025743,2]
[354860599,1740750632423,-1548.43546718,0.00025769,2]
[354860602,1740750632433,-4435.0,0.00025855,2]
[354860605,1740750632443,-175.43,0.00025877,2]
[354860608,1740750632452,-573.86039474,0.0002599,2]
[354860611,1740750632461,-4433.65,0.00026,2]
[354860614,1740750632471,-175.43,0.0002601,2]
[354860617,1740750632481,-176.48,0.00026016,2]
[354860620,1740750632493,-544.349,0.0002612,12]
[354860623,1740750632504,-175.43,0.00026144,2]
[354860626,1740750632513,-175.43,0.00026277,2]
[354860629,1740750632523,-1000.0,0.0002632,2]
[354860631,1740750632533,-179.36,0.00026323,2]
[354860633,1740750632543,-175.43,0.0002641,2]
[354860635,1740750632553,-175.43,0.00026544,2]
[354860638,1740750632562,-175.43,0.00026677,2]
[354860641,1740750632572,-175.43,0.00026811,2]
[354860643,1740750632581,-175.43,0.00026944,2]
[354860647,1740750632592,-250.0,0.00027,2]
[354860648,1740750632601,-989.67979584,0.00027,2]
[354860650,1740750632611,-175.43,0.00027077,2]
[354860652,1740750632620,-250.0,0.00027174,2]
[354860654,1740750632629,-175.43,0.00027211,2]
[354860656,1740750632639,-175.43,0.00027344,2]
[354860658,1740750632648,-1237.48291,0.0002735,2]
[354860660,1740750632657,-150.06,0.00027397,2]
[354860662,1740750632667,-175.43,0.00027478,2]
[354860664,1740750632676,-192.18345314,0.000275,2]
[354860666,1740750632686,-175.43,0.00027611,2]
[354860668,1740750632695,-175.43,0.00027744,2]
[354860670,1740750632705,-175.43,0.00027878,2]
[354860673,1740750632716,-200.0,0.00027969,2]
[354860675,1740750632726,-1584.77,0.00027972,2]
[354860676,1740750632735,-1056.52371296,0.00028,2]
[354860679,1740750632747,-257.94071662,0.00028,60]
[354860680,1740750632756,-179.36,0.00028495,2]
[354860683,1740750632766,-154.82,0.00028767,2]
[354860684,1740750632776,-203.64,0.00028943,120]
[354860686,1740750632786,-500.0,0.00028959,2]
[354860688,1740750632795,-3000.0,0.00029276,2]
[354860691,1740750632805,-1862.89,0.00029284,2]
[354860693,1740750632815,-2073.03,0.00029301,2]
[354860695,1740750632824,-1000.0,0.0002961,2]
[354860697,1740750632833,-23166.99848571,0.000299,2]
[354860698,1740750632843,-10052.26236359,0.0003,120]
[354860701,1740750632854,-1584.77,0.00030236,2]
[354860703,1740750632863,-184.6,0.00030499,2]
[354860704,1740750632872,-179.36,0.00030667,2]
[354860706,1740750632882,-507.2879755,0.00030941,2]
[354860708,1740750632892,-510.704955,0.000316,7]
[354860710,1740750632901,-1007.24149946,0.00031731,4]
[354860712,1740750632911,-163.87434646,0.00031731,2]
[354860715,1740750632921,-246.14282389,0.0003183,2]
[354860717,1740750632930,-500.0,0.0003183,2]
[354860718,1740750632939,-175.09818062,0.0003183,2]
[354860720,1740750632949,-456.43009865,0.0003183,2]
[354860723,1740750632961,-500.0,0.0003183,2]
[354860724,1740750632972,-500.0,0.0003183,2]
[354860726,1740750632982,-500.0,0.0003183,2]
[354860728,1740750632993,-500.0,0.0003183,2]
[354860730,1740750633004,-386.6912638,0.00031831,2]
[354860732,1740750633014,-5640.97531079,0.00031831,2]
[354860734,1740750633027,-253.83214093,0.00031831,2]
[354860737,1740750633043,-1517.7796849,0.00031831,2]
[354860740,1740750633068,-67.51709,0.00031831,2]
[354860742,1740750633080,-398.05286501,0.00031831,2]
[354860745,1740750633096,-20088.90376816,0.00031831,2]
[354860747,1740750633106,-3388.95007518,0.00031831,2]
[354860749,1740750633116,-14469.72963412,0.00031831,2]
[354860751,1740750633126,-7719.46322565,0.00031831,2]
[354860753,1740750633136,-22581.43519841,0.00031831,2]
[354860755,1740750633146,-12717.410763,0.00031831,2]
[354860757,1740750633155,-1903.77792465,0.00031831,2]
[354860759,1740750633165,-182.37597516,0.00031831,2]
[354860761,1740750633174,-643.0,0.00031831,2]
[354860763,1740750633184,-961.38616039,0.00031831,2]
[354860765,1740750633194,-9555.47952962,0.00031831,2]
[354860767,1740750633204,-25117.87497149,0.00031831,2]
[354860769,1740750633215,-567.82793085,0.00031831,2]
[354860771,1740750633225,-1820.19231679,0.00031831,2]
[354860773,1740750633234,-3214.05466568,0.00031831,2]
[354860775,1740750633246,-173.7925219,0.00031831,2]
[354860777,1740750633255,-122.55683968,0.00031831,2]
[354860779,1740750633272,-6899.66409241,0.00031831,2]
[354860781,1740750633282,-550.0,0.00031831,2]
[354860783,1740750633292,-1453.1671381,0.00031831,2]
[354860785,1740750633302,-998.93686953,0.00031831,2]
[354860787,1740750633313,-10608.80802283,0.00031831,2]
[354860790,1740750633323,-142903.35444636,0.00031831,2]
[354860801,1740750637859,-16396.13602059,0.00031831,2]
[354860802,1740750637981,-8887.99837572,0.00031831,2]
[354860803,1740750637991,-1497.44364891,0.00031831,2]
[354860804,1740750638090,-13316.82065542,0.00031831,2]
[354860805,1740750638100,-226.88750806,0.00031831,2]
[354860806,1740750638109,-172.18905617,0.00031831,2]
[354860807,1740750638119,-6000.0,0.00031831,2]
[354860808,1740750638129,-372.04280968,0.00031831,2]
[354860809,1740750638138,-1457.2966143,0.00031831,2]
[354860810,1740750638148,-1024.14829461,0.00031831,2]
[354860811,1740750638158,-4805.82624352,0.00031831,2]
[354860812,1740750638167,-558.03875566,0.00031831,2]
[354860814,1740750638177,-150.0,0.00031831,2]
[354860815,1740750638186,-7704.20224043,0.00031831,2]
[354860816,1740750638195,-601.58291213,0.00031831,2]
[354860817,1740750638205,-620.61310951,0.00031831,2]
[354860818,1740750638215,-212.75115486,0.00031831,2]
[354860819,1740750638225,-11483.62436543,0.00031831,2]
[354860821,1740750638239,-343.813627,0.00031831,2]
[354860823,1740750638252,-3399.58962493,0.00031831,2]
[354860825,1740750638263,-495.1608726,0.00031831,2]
[354860887,1740750639870,-600.91089645,0.000151,2]
[354860888,1740750639880,-2645.08910355,0.00031831,2]
[354860889,1740750639988,-4077.3,0.00031831,2]
[354860890,1740750640090,-1228.1757722,0.00031831,2]
[354860891,1740750640102,-755.15649999,0.00031831,2]
[354860892,1740750640188,-372.4400005,0.00031831,2]
[354860896,1740750642898,-9255.13777892,0.00031831,2]
[354860897,1740750642916,-1338.07547493,0.00031831,2]
[354860898,1740750643792,-105265.35809992,0.00031831,2]
[354860899,1740750643802,-445.91425927,0.00031831,2]
[354860900,1740750643812,-1058.01158517,0.00031831,2]
[354860901,1740750643821,-2500.0,0.00031831,2]
[354860902,1740750643831,-574.40458709,0.00031831,2]
[354860903,1740750643840,-339.31607833,0.00031831,2]
[354860904,1740750643849,-1100.0,0.00031831,2]
[354860905,1740750643859,-904.57535169,0.00031831,2]
[354860906,1740750643867,-477.5223579,0.00031831,2]
[354860907,1740750643877,-168.80072736,0.00031831,2]
[354860908,1740750643886,-227.65066904,0.00031831,2]
[354860909,1740750643895,-1572.68695291,0.00031831,2]
[354860910,1740750643903,-24021.48164192,0.00031831,2]
[354860911,1740750643913,-4013.24079271,0.00031831,2]
[354860975,1740750646157,-7862.57691363,0.00031831,2]
[354861002,1740750646511,-2551.15474433,0.00031831,2]
[354861003,1740750646523,-2762.52309478,0.00031831,2]
[354861004,1740750646618,-286.87505718,0.00031831,2]
[354861005,1740750646630,-443.04088218,0.00031831,2]
[354861006,1740750646642,-809.53758033,0.00031831,2]
[354861007,1740750646654,-2078.79048,0.00031831,2]
[354861075,1740751832112,-250.54459124,0.000193,2]
[354861076,1740751832211,-78.45540876,0.000193,2]
[354861077,1740751832221,-250.0,0.00021,2]
[354861078,1740751832234,-122.73567224,0.00021918,2]
[354861079,1740751832247,-32.08432776,0.00021918,2]
[354861080,1740751832257,-300.0,0.00023,2]
[354861081,1740751832267,-162.07271679,0.00023,2]
[354861082,1740751832281,-1513.18387593,0.00023,2]
[354861083,1740751832292,-184.94598663,0.000249,2]
[354861084,1740751832303,-350.0,0.00025,2]
[354861085,1740751832314,-500.0,0.0002674,2]
[354861086,1740751832324,-400.0,0.00027,2]
[354861087,1740751832334,-1341.22,0.00028616,2]
[354861088,1740751832344,-450.0,0.00029,2]
[354861089,1740751832359,-500.0,0.00030215,2]
[354861090,1740751832370,-166.04,0.00030239,2]
[354861091,1740751832381,-161.54,0.00030273,30]
[354861092,1740751832391,-151.03,0.00030426,2]
[354861093,1740751832401,-151.03,0.00030595,2]
[354861094,1740751832411,-250.0,0.00030605,2]
[354861095,1740751832421,-461.0,0.00030685,2]
[354861096,1740751832433,-151.03,0.00030764,2]
[354861097,1740751832444,-1000.0,0.00030795,2]
[354861098,1740751832455,-1341.22,0.0003088,2]
[354861099,1740751832466,-151.03,0.00030933,2]
[354861100,1740751832479,-154.71,0.00030953,2]
[354861101,1740751832488,-500.0,0.00031,2]
[354861102,1740751832499,-73.84468161,0.00031102,2]
[354861103,1740751832511,-77.18531839,0.00031102,2]
[354861104,1740751832523,-151.03,0.00031271,2]
[354861105,1740751832536,-386.29493601,0.00031332,2]
[354861106,1740751832547,-3569.0033052,0.00031386,2]
[354861107,1740751832559,-7068.83003891,0.00031386,2]
[354861108,1740751832572,-500.56005864,0.00031386,2]
[354861109,1740751832584,-12761.60659725,0.00031386,2]
[354861110,1740751832595,-151.03,0.0003144,2]
[354861111,1740751832606,-150.17,0.00031483,2]
[354861112,1740751832616,-435.479,0.00031483,29]
[354861113,1740751832625,-773.96,0.00031491,2]
[354861114,1740751832635,-8597.44844447,0.0003152,2]
[354861115,1740751832646,-192.22,0.00031563,2]
[354861116,1740751832656,-150.0,0.00031576,2]
[354861117,1740751832666,-151.03,0.00031609,2]
[354861118,1740751832676,-386.29493602,0.00031613,2]
[354861119,1740751832688,-22973.26613045,0.00031745,2]
[354861120,1740751832698,-874.5055,0.00031745,2]
[354861121,1740751832708,-150.0,0.00031766,2]
[354861122,1740751832719,-151.03,0.00031778,2]
[354861123,1740751832731,-32673.4884557,0.00031834,2]
[354861124,1740751832741,-441.2,0.00031836,3]
[354861125,1740751832751,-28761.94703289,0.00031846,2]
[354861126,1740751832762,-542.95826383,0.00031846,2]
[354861127,1740751832772,-4964.80567996,0.00031846,2]
[354861128,1740751832783,-5152.98717916,0.00031846,2]
[354861129,1740751832794,-1002.68938967,0.00031846,2]
[354861130,1740751832805,-321.46973006,0.00031846,120]
[354861131,1740751832816,-361.52714128,0.00031846,2]
[354861132,1740751832826,-2185.72136584,0.00031846,2]
[354861133,1740751832836,-281.14986713,0.00031846,2]
[354861134,1740751832846,-15752.69095174,0.00031846,7]
[354861135,1740751832856,-14639.71650461,0.00031846,2]
[354861136,1740751832867,-1820.16451761,0.00031846,2]
[354861137,1740751832877,-1107.66442616,0.00031846,2]
[354861138,1740751832887,-13937.29236068,0.00031846,2]
[354861139,1740751832897,-218.31537361,0.00031846,2]
[354861140,1740751832908,-10103.65294511,0.00031846,2]
[354861141,1740751832918,-279.0,0.00031846,2]
[354861142,1740751832928,-1690.16643411,0.00031846,2]
[354861143,1740751832937,-200.87981927,0.00031846,2]
[354861144,1740751832947,-280.05322937,0.00031846,2]
[354861145,1740751832957,-5630.3452802,0.00031846,2]
[354861146,1740751832967,-1003.62601482,0.00031846,2]
[354861147,1740751832985,-162.91,0.00031846,2]
[354861148,1740751832995,-3537.20373252,0.00031846,2]
[354861149,1740751833006,-36975.55035962,0.00031846,2]
[354861150,1740751833017,-12622.0209349,0.00031856,2]
[354861151,1740751833029,-14638.33772045,0.000319,6]
[354861152,1740751833041,-169.71,0.00031924,120]
[354861153,1740751833052,-200.0,0.0003194,2]
[354861154,1740751833064,-151.03,0.00031947,2]
[354861155,1740751833075,-151.03,0.00032116,2]
[354861156,1740751833092,-203.64,0.00032159,120]
[354861157,1740751833105,-151.03,0.00032285,2]
[354861158,1740751833123,-151.03,0.00032454,2]
[354861159,1740751833134,-4023.63,0.00032502,2]
[354861160,1740751833148,-151.03,0.00032623,2]
[354861161,1740751833165,-151.03,0.00032792,2]
[354861162,1740751833176,-151.03,0.00032961,2]
[354861163,1740751833187,-550.0,0.00033,2]
[354861164,1740751833198,-151.03,0.0003313,2]
[354861165,1740751833209,-1341.22,0.00033144,2]
[354861166,1740751833221,-500.0,0.00033233,2]
[354861167,1740751833237,-166.04,0.00033263,2]
[354861168,1740751833248,-151.03,0.000333,2]
[354861169,1740751833259,-151.03,0.00033469,2]
[354861170,1740751833269,-220.98784913,0.00033591,2]
[354861171,1740751833279,-151.27337819,0.00033591,5]
[354861172,1740751833290,-150.0,0.00034548,10]
[354861173,1740751833300,-1000.0,0.00034644,2]
[354861174,1740751833311,-200.0,0.0003481,120]
[354861175,1740751833321,-22973.2661304,0.00034873,2]
[354861176,1740751833333,-382.21645025,0.00035,2]
[354861177,1740751833343,-15236.66556483,0.00035,5]
[354861178,1740751833359,-600.0,0.00035,2]
[354861179,1740751833369,-203.64,0.00035375,120]
[354861180,1740751833380,-1341.22,0.00035408,2]
[354861181,1740751833391,-154.82,0.00035616,2]
[354861182,1740751833402,-2000.0,0.00036106,5]
[354861183,1740751833412,-166.04,0.00036287,2]
[354861184,1740751833423,-777.07,0.00036308,2]
[354861185,1740751833434,-440.84,0.00036308,2]
[354861186,1740751833446,-777.07,0.00036308,2]
[354861187,1740751833457,-777.07,0.00036308,2]
[354861188,1740751833469,-188.39,0.00036308,2]
[354861189,1740751833484,-439.81,0.00036582,2]
[354861190,1740751833495,-344.31,0.00036582,2]
[354861191,1740751833506,-151.29,0.00036582,2]
[354861192,1740751833517,-150.0,0.00036582,2]
[354861193,1740751833527,-150.0,0.00036582,2]
[354861194,1740751833538,-150.0,0.00036582,2]
[354861195,1740751833549,-150.0,0.00036582,2]
[354861196,1740751833559,-439.81,0.00036582,2]
[354861197,1740751833570,-988.5,0.00036582,2]
[354861198,1740751833580,-344.31,0.00036582,2]
[354861199,1740751833591,-439.81,0.00036582,2]
[354861200,1740751833602,-344.07,0.00036582,2]
[354861201,1740751833614,-150.0,0.00036582,2]
[354861202,1740751833625,-988.5,0.00036582,2]
[354861203,1740751833635,-150.0,0.00036582,2]
[354861204,1740751833646,-150.0,0.00036582,2]
[354861205,1740751833657,-988.5,0.00036582,2]
[354861206,1740751833668,-650.0,0.00037,2]
[354861207,1740751833678,-250.18,0.0003713,2]
[354861208,1740751833688,-150.0,0.0003713,2]
[354861209,1740751833698,-150.0,0.0003713,2]
[354861210,1740751833708,-150.0,0.0003713,2]
[354861211,1740751833719,-150.0,0.0003713,2]
[354861212,1740751833735,-42381.0,0.00037146,2]
[354861213,1740751833745,-191.42524328,0.000372,103]
[354861214,1740751833756,-953.52,0.00037375,2]
[354861215,1740751833766,-300.0,0.00037375,2]
[354861216,1740751833778,-262.82,0.00037375,2]
[354861217,1740751833789,-194.85,0.00037375,2]
[354861218,1740751833800,-378.27,0.00037375,2]
[354861219,1740751833816,-211.4,0.00037375,2]
[354861220,1740751833830,-152.38,0.00037404,2]
[354861221,1740751833842,-1341.22,0.00037672,2]
[354861222,1740751833852,-22973.2661304,0.00038002,2]
[354861223,1740751833862,-2099.52870777,0.00038394,2]
[354861224,1740751833872,-1000.0,0.00038494,2]
[354861225,1740751833882,-203.64,0.00038591,120]
[354861226,1740751833893,-416.02,0.00039,120]
[354861227,1740751833903,-700.0,0.00039,2]
[354861228,1740751833912,-339.03808907,0.00039352,2]
[354861229,1740751833922,-172.98,0.00039452,2]
[354861230,1740751833932,-209.08,0.00039452,2]
[354861231,1740751833942,-154.74,0.00039452,2]
[354861232,1740751833953,-150.17,0.00039472,2]
[354861233,1740751833962,-497.34824523,0.000399,4]
[354861234,1740751833972,-169.71,0.00039905,120]
[354861235,1740751833987,-1341.22,0.00039936,2]
[354861236,1740751833997,-675.295873,0.0004,41]
[354861237,1740751834007,-500.37913286,0.00040272,2]
[354861238,1740751834018,-150.99,0.0004029,2]
[354861239,1740751834029,-299.99,0.0004029,120]
[354861240,1740751834039,-999.99,0.0004029,2]
[354861241,1740751834050,-1053.29,0.0004029,2]
[354861242,1740751834060,-954.94,0.0004029,2]
[354861243,1740751834070,-9999.99,0.0004029,2]
[354861244,1740751834080,-2099.52870775,0.00040784,15]
[354861245,1740751834090,-750.0,0.00041,2]
[354861246,1740751834099,-160.70683818,0.00041096,2]
[354861247,1740751834109,-22973.2661304,0.0004113,15]
[354861248,1740751834120,-579.0,0.00042,2]
[354861249,1740751834129,-1341.22,0.00042199,2]
[354861250,1740751834139,-181.12,0.000423,2]
[354861251,1740751834149,-2000.0,0.00042326,5]
[354861252,1740751834159,-1000.0,0.00042343,2]
[354861253,1740751834169,-250.0,0.00042555,2]
[354861254,1740751834179,-232.0,0.00042555,2]
[354861255,1740751834189,-150.385,0.00042555,2]
[354861256,1740751834198,-150.0,0.00042555,2]
[354861257,1740751834208,-150.839,0.00042555,2]
[354861258,1740751834217,-214.0,0.00043,7]
[354861259,1740751834229,-800.0,0.00043,2]
[354861260,1740751834239,-2099.52870775,0.00043173,15]
[354861261,1740751834249,-302.81269776,0.00043482,10]
[354861262,1740751834259,-168.36757832,0.00043562,120]
[354861263,1740751834268,-773.96,0.00044088,2]
[354861264,1740751834279,-1900.0,0.000442,7]
[354861265,1740751834288,-213.839,0.00044238,2]
[354861266,1740751834298,-241.001,0.00044238,2]
[354861267,1740751834307,-1295.985,0.00044238,2]
[354861268,1740751834317,-2029.0,0.00044238,2]
[354861269,1740751834327,-150.0,0.00044238,2]
[354861270,1740751834336,-570.0,0.00044238,2]
[354861271,1740751834347,-1582.0,0.00044238,2]
[354861272,1740751834356,-640.0,0.00044238,2]